fUSD/lending_fUSD_20260413
["ID","MTS","AMOUNT","RATE_DAILY","PERIOD"]
[420420903,1776093365402,-3454.22504459,0.0003781,30]
[420420904,1776093365480,-3454.22504459,0.0003781,30]
[420420905,1776093365538,-3454.22504459,0.0003781,30]
[420420906,1776093365613,-3454.22504459,0.0003781,30]
[420420907,1776093365667,-3454.22504459,0.0003781,30]
[420420908,1776093365725,-3454.22,0.0003781,30]
[420420909,1776093365783,-821.15337085,0.0003781,30]
[420420910,1776093365841,-821.15337085,0.0003781,30]
[420420911,1776093365894,-821.15337085,0.0003781,30]
[420420912,1776093365945,-821.15337085,0.0003781,30]
[420420913,1776093366002,-821.15337085,0.0003781,30]
[420420914,1776093366063,-821.15337085,0.0003781,30]
[420420915,1776093366115,-821.15337085,0.0003781,30]
[420420916,1776093366170,-821.15337085,0.0003781,30]
[420420917,1776093366233,-821.15337085,0.0003781,30]
[420420918,1776093366288,-821.15337085,0.0003781,30]
[420420919,1776093366365,-821.15337085,0.0003781,30]
[420420920,1776093366422,-821.15337085,0.0003781,30]
[420420921,1776093366486,-821.15337085,0.0003781,30]
[420420922,1776093366552,-821.15337085,0.0003781,30]
[420420923,1776093366610,-821.15337085,0.0003781,30]
[420420924,1776093366676,-821.15337085,0.0003781,30]
[420420925,1776093366743,-821.15337085,0.0003781,30]
[420420926,1776093366818,-821.15337085,0.0003781,30]
[420420927,1776093366899,-821.15337085,0.0003781,30]
[420420928,1776093366976,-821.15,0.0003781,30]
[420420929,1776093367043,-1916.02453198,0.0003781,30]
[420420930,1776093367132,-1916.02453198,0.0003781,30]
[420420931,1776093367198,-1916.02453198,0.0003781,30]
[420420932,1776093367256,-1916.02453198,0.0003781,30]
[420420933,1776093367314,-1916.02453198,0.0003781,30]
[420420934,1776093367369,-1916.02453198,0.0003781,30]
[420420935,1776093367430,-1916.02453198,0.0003781,30]
[420420936,1776093367483,-1916.02453198,0.0003781,30]
[420420937,1776093367540,-1916.02453198,0.0003781,30]
[420420938,1776093367600,-1916.02453198,0.0003781,30]
[420420939,1776093367654,-1916.02453198,0.0003781,30]
[420420940,1776093367709,-1916.02453198,0.0003781,30]
[420420941,1776093367767,-1916.02453198,0.0003781,30]
[420420942,1776093367828,-1916.02453198,0.0003781,30]
[420420943,1776093367884,-1916.02453198,0.0003781,30]
[420420944,1776093367942,-1916.02453198,0.0003781,30]
[420420945,1776093368026,-1916.02453198,0.0003781,30]
[420420946,1776093368113,-1916.02453198,0.0003781,30]
[420420947,1776093368174,-1916.02453198,0.0003781,30]
[420420948,1776093368262,-1916.02,0.0003781,30]
[420420949,1776093368353,-501.3032377,0.0003781,30]
[420420950,1776093368458,-501.3032377,0.0003781,30]
[420420951,1776093368544,-501.3032377,0.0003781,30]
[420420952,1776093368598,-501.3032377,0.0003781,30]
[420420953,1776093368667,-501.3032377,0.0003781,30]
[420420954,1776093368725,-501.3032377,0.0003781,30]
[420420955,1776093368779,-501.3032377,0.0003781,30]
[420420956,1776093368844,-501.3032377,0.0003781,30]
[420420957,1776093369325,-501.3032377,0.0003781,30]
[420420958,1776093369396,-501.3032377,0.0003781,30]
[420420959,1776093369458,-501.3032377,0.0003781,30]
[420420960,1776093369552,-501.3032377,0.0003781,30]
[420420961,1776093369618,-501.3032377,0.0003781,30]
[420420962,1776093369718,-501.3032377,0.0003781,30]
[420420963,1776093369856,-501.3032377,0.0003781,30]
[420420964,1776093369937,-501.3032377,0.0003781,30]
[420420965,1776093370017,-501.3032377,0.0003781,30]
[420420966,1776093370091,-501.3032377,0.0003781,30]
[420420967,1776093370155,-501.3032377,0.0003781,30]
[420420968,1776093370206,-501.3,0.0003781,30]
[420420969,1776093370256,-1169.70755464,0.0003781,30]
[420420970,1776093370307,-1169.70755464,0.0003781,30]
[420420971,1776093370364,-1169.70755464,0.0003781,30]
[420420972,1776093370418,-1169.70755464,0.0003781,30]
[420420973,1776093370472,-1169.70755464,0.0003781,30]
[420420974,1776093370528,-1169.70755464,0.0003781,30]
[420420975,1776093370582,-1169.70755464,0.0003781,30]
[420420976,1776093370636,-1169.70755464,0.0003781,30]
[420420977,1776093370699,-1169.70755464,0.0003781,30]
[420420978,1776093370752,-1169.70755464,0.0003781,30]
[420420979,1776093370806,-1169.70755464,0.0003781,30]
[420420980,1776093370862,-1169.70755464,0.0003781,30]
[420420981,1776093370922,-1169.70755464,0.0003781,30]
[420420982,1776093370981,-1169.70755464,0.0003781,30]
[420420983,1776093371031,-1169.70755464,0.0003781,30]
[420420984,1776093371084,-1169.70755464,0.0003781,30]
[420420985,1776093371137,-1169.70755464,0.0003781,30]
[420420986,1776093371189,-1169.70755464,0.0003781,30]
[420420987,1776093371246,-1169.70755464,0.0003781,30]
[420420988,1776093371305,-1169.7,0.0003781,30]
[420420989,1776093371358,-229.44799026,0.000379,120]
[420420990,1776093371417,-4210.0,0.00037945,30]
[420420991,1776093371485,-741.0,0.00037945,30]
[420420992,1776093371546,-445.63,0.00037947,90]
[420420993,1776093371650,-462.0,0.0003796,30]
[420420994,1776093371859,-1866.0,0.0003796,30]
[420420995,1776093371940,-580.0,0.0003796,30]
[420420996,1776093372010,-538.0,0.0003796,30]
[420420997,1776093372070,-713.0,0.0003796,30]
[420420998,1776093372125,-357.0,0.0003796,30]
[420420999,1776093372180,-627.0,0.0003796,30]
[420421000,1776093372229,-151.0,0.00038,120]
[420421001,1776093372278,-18294.82206692,0.00038,120]
[420421002,1776093372329,-1000.0,0.00038,60]
[420421003,1776093372379,-2000.0,0.00038,120]
[420421004,1776093372429,-676.0,0.00038,120]
[420421005,1776093372479,-580.49,0.00038014,120]
[420421006,1776093372529,-9368.3861182,0.000381,33]
[420421007,1776093372580,-1864.68,0.0003813,54]
[420421008,1776093372631,-1037.64912,0.000382,120]
[420421009,1776093372687,-1392.47017,0.000382,120]
[420421010,1776093372749,-1000.0,0.000383,120]
[420421011,1776093372801,-1000.0,0.000383,120]
[420421012,1776093372850,-514.32024547,0.000383,30]
[420421013,1776093372902,-280.74899495,0.00038355,120]
[420421014,1776093372963,-1928.8,0.00038356,120]
[420421015,1776093373041,-200.0,0.00038356,120]
[420421016,1776093373130,-317.76482923,0.00038356,120]
[420421017,1776093373235,-462.83060818,0.00038356,120]
[420421018,1776093373431,-9880.20279718,0.000385,30]
[420421019,1776093373596,-1079.61,0.0003858,30]
[420421020,1776093373700,-1000.0,0.000386,120]
[420421021,1776093373763,-2325.45993149,0.00038678,60]
[420421022,1776093373825,-150.0,0.00038698,120]
[420421023,1776093373877,-500.0,0.000387,120]
[420421024,1776093373927,-500.0,0.000387,120]
[420421025,1776093373976,-500.0,0.000387,120]
[420421026,1776093374025,-500.0,0.000387,120]
[420421027,1776093374087,-500.0,0.000387,120]
[420421028,1776093374147,-500.0,0.000387,120]
[420421029,1776093374198,-500.0,0.000387,120]
[420421030,1776093374251,-500.0,0.000387,120]
[420421031,1776093374328,-500.0,0.000387,120]
[420421032,1776093374381,-500.0,0.000387,120]
[420421033,1776093374448,-500.0,0.000387,120]
[420421034,1776093374504,-500.0,0.000387,120]
[420421035,1776093374559,-500.0,0.000387,120]
[420421036,1776093374615,-500.0,0.000387,120]
[420421037,1776093374690,-500.0,0.000387,120]
[420421038,1776093374742,-500.0,0.000387,120]
[420421039,1776093374807,-500.0,0.000387,120]
[420421040,1776093374868,-500.0,0.000387,120]
[420421041,1776093374936,-500.0,0.000387,120]
[420421042,1776093374989,-275.1,0.00038709,34]
[420421043,1776093375044,-275.1,0.00038709,44]
[420421044,1776093375114,-275.1,0.00038709,45]
[420421045,1776093375165,-275.1,0.00038709,49]
[420421046,1776093375218,-275.1,0.00038709,55]
[420421047,1776093375270,-275.1,0.00038709,59]
[420421048,1776093375325,-275.1,0.00038709,65]
[420421049,1776093375379,-275.1,0.00038709,72]
[420421050,1776093375437,-776.72,0.00038851,90]
[420421051,1776093375493,-151.53150831,0.00038865,60]
[420421052,1776093375549,-64027.7385061,0.0003888,60]
[420421053,1776093375600,-157.76454444,0.00038904,120]
[420421054,1776093375656,-209.0,0.0003891,30]
[420421055,1776093375713,-175.0,0.00038915,120]
[420421056,1776093375770,-1864.68,0.0003892,63]
[420421057,1776093375838,-4210.0,0.00038945,30]
[420421058,1776093375896,-741.0,0.00038945,30]
[420421059,1776093375951,-462.0,0.0003896,30]
[420421060,1776093376019,-1866.0,0.0003896,30]
[420421061,1776093376079,-580.0,0.0003896,30]
[420421062,1776093376165,-538.0,0.0003896,30]
[420421063,1776093376314,-713.0,0.0003896,30]
[420421064,1776093376482,-357.0,0.0003896,30]
[420421065,1776093376595,-627.0,0.0003896,30]
[420421066,1776093376660,-2289.12514697,0.00039,120]
[420421067,1776093376720,-9601.01139383,0.00039,120]
[420421068,1776093376773,-3622.82049733,0.00039,120]
[420421069,1776093376826,-150.0,0.0003904,120]
[420421070,1776093376881,-250.0,0.00039062,56]
[420421071,1776093376936,-731.5212956,0.00039097,77]
[420421072,1776093376988,-275.11,0.000391,53]
[420421073,1776093377040,-275.11,0.000391,62]
[420421074,1776093377435,-275.11,0.000391,64]
[420421075,1776093377494,-275.11,0.000391,74]
[420421076,1776093377588,-275.11,0.000391,82]
[420421077,1776093377727,-275.11,0.000391,80]
[420421078,1776093377839,-275.11,0.000391,88]
[420421079,1776093377946,-164.31,0.000391,31]
[420421080,1776093378021,-275.11,0.000391,75]
[420421081,1776093378076,-1392.47017,0.000391,120]
[420421082,1776093378129,-165.06,0.000391,75]
[420421083,1776093378184,-1100.0,0.00039104,30]
[420421084,1776093378237,-2195.1,0.00039141,30]
[420421085,1776093378288,-150.0,0.00039383,120]
[420421086,1776093378340,-200000.0,0.0003939,120]
[420421087,1776093378394,-150.0,0.000395,60]
[420421088,1776093378446,-207.017,0.00039502,55]
[420421089,1776093378502,-5230.517,0.00039502,55]
[420421090,1776093378558,-1100.0,0.00039572,30]
[420421091,1776093378611,-500.0,0.00039577,120]
[420421092,1776093378668,-191.55,0.00039577,120]
[420421093,1776093378721,-500.0,0.00039686,60]
[420421094,1776093378774,-2208.77,0.000397,30]
[420421095,1776093378829,-1864.68,0.000397,70]
[420421096,1776093378882,-150.0,0.00039725,120]
[420421097,1776093378945,-184.0,0.00039726,30]
[420421098,1776093379000,-165.0,0.00039726,30]
[420421099,1776093379061,-164.0,0.00039726,120]
[420421100,1776093379136,-162.0,0.00039726,120]
[420421101,1776093379194,-428.03884647,0.000398,30]
[420421102,1776093379256,-1000.0,0.0003987,120]
[420421103,1776093379316,-1000.0,0.0003987,120]
[420421104,1776093379374,-1000.0,0.0003987,120]
[420421105,1776093379428,-1000.0,0.0003987,120]
[420421106,1776093379487,-1000.0,0.0003987,120]
[420421107,1776093379542,-2721.11307272,0.000399,120]
[420421108,1776093379610,-159.0,0.0004,120]
[420421109,1776093379695,-1000.0,0.0004,120]
[420421110,1776093379777,-173.6782,0.0004,60]
[420421111,1776093379858,-200.0,0.0004,120]
[420421112,1776093379915,-500.0,0.0004,120]
[420421113,1776093379982,-171.32821553,0.0004,120]
[420421114,1776093380036,-152.0,0.0004,120]
[420421115,1776093380176,-151.0,0.0004,120]
[420421116,1776093380231,-33423.33521217,0.0004,120]
[420421117,1776093380293,-405.15273988,0.0004,120]
[420421118,1776093380351,-2119.24506613,0.0004,120]
[420421119,1776093380419,-500.0,0.0004,120]
[420421120,1776093380484,-155.84619916,0.0004,120]
[420421121,1776093380587,-4588.05693142,0.0004,120]
[420421122,1776093380664,-3136.85711188,0.0004,120]
[420421123,1776093380728,-350.16643441,0.0004,60]
[420421124,1776093380808,-189.69978109,0.0004,120]
[420421125,1776093380895,-245.01464559,0.0004,30]
[420421126,1776093380995,-718.0,0.0004,120]
[420421127,1776093381150,-10000.0,0.0004,30]
[420421128,1776093381319,-1000.0,0.0004,30]
[420421129,1776093381418,-1000.0,0.0004,30]
[420421130,1776093381484,-1000.0,0.0004,30]
[420421131,1776093381536,-1000.0,0.0004,30]
[420421132,1776093381588,-1000.0,0.0004,30]
[420421133,1776093381644,-206.0,0.0004,30]
[420421134,1776093381696,-5000.0,0.0004,100]
[420421135,1776093381751,-2000.0,0.0004,120]
[420421136,1776093381803,-1392.4702,0.0004,120]
[420421137,1776093381860,-39329.0,0.0004,120]
[420421138,1776093381917,-1000.0,0.0004,120]
[420421139,1776093381985,-628.65089174,0.0004,120]
[420421140,1776093382062,-148732.14035369,0.0004,120]
[420421141,1776093382120,-1177.51615657,0.0004,120]
[420421142,1776093382207,-1574.5050827,0.0004,120]
[420421143,1776093382271,-2006.18898155,0.0004,120]
[420421144,1776093382345,-5364.05,0.0004,120]
[420421145,1776093382421,-696.25,0.0004,120]
[420421146,1776093382693,-7829.52,0.0004,120]
[420421147,1776093382750,-900.52,0.0004,120]
[420421148,1776093382804,-3914.29,0.0004,120]
[420421149,1776093382858,-10000.0,0.0004,120]
[420421150,1776093382917,-2316.54,0.0004,120]
[420421151,1776093382977,-10235.96,0.0004,120]
[420421152,1776093383034,-1100.0,0.00040039,30]
[420421153,1776093383090,-150.0,0.00040068,120]
[420421154,1776093383145,-550.0,0.000401,120]
[420421155,1776093383198,-550.11398471,0.00040166,31]
[420421156,1776093383254,-550.0,0.000403,120]
[420421157,1776093383312,-229.28158246,0.00040374,120]
[420421158,1776093383378,-150.0,0.0004041,120]
[420421159,1776093383436,-1864.68,0.0004048,78]
[420421160,1776093383503,-150.0,0.000405,62]
[420421161,1776093383559,-1100.0,0.00040507,30]
[420421162,1776093383614,-150.0,0.0004059,120]
[420421163,1776093383672,-559.0,0.0004059,120]
[420421164,1776093383732,-152.0,0.000406,120]
[420421165,1776093383787,-150.0,0.00040753,120]
[420421166,1776093383847,-847.33473561,0.00040767,120]
[420421167,1776093383899,-201.67542607,0.000408,60]
[420421168,1776093383951,-500.0,0.00040853,60]
[420421169,1776093384010,-175.0,0.00040861,120]
[420421170,1776093384061,-151.0,0.000409,120]
[420421171,1776093384114,-1000.0,0.0004092,30]
[420421172,1776093384182,-209.0,0.0004093,30]
[420421173,1776093384234,-198956.0,0.0004095,60]
[420421174,1776093384286,-117191.53034201,0.00041,30]
[420421175,1776093384340,-1000.0,0.00041,120]
[420421176,1776093384397,-429.4530547,0.00041,45]
[420421177,1776093384458,-500.0,0.00041,45]
[420421178,1776093384512,-500.0,0.00041,120]
[420421179,1776093384582,-500.0,0.00041,45]
[420421180,1776093384642,-43634.96930871,0.00041,120]
[420421181,1776093384697,-169.82248571,0.00041,120]
[420421182,1776093384751,-6927.60652646,0.00041,120]
[420421183,1776093384804,-547.79,0.00041,30]
[420421184,1776093384856,-1000.0,0.00041,120]
[420421185,1776093384909,-1000.0,0.00041,120]
[420421186,1776093384966,-7758.70292333,0.00041,120]
[420421187,1776093385027,-150.0,0.00041095,120]
[420421188,1776093385081,-500.0,0.00041095,120]
[420421189,1776093385142,-500.0,0.00041095,120]
[420421190,1776093385211,-500.0,0.00041095,120]
[420421191,1776093386035,-500.0,0.00041095,120]
[420421192,1776093386241,-500.0,0.00041095,120]
[420421193,1776093386399,-500.0,0.00041095,120]
[420421194,1776093386556,-500.0,0.00041095,120]
[420421195,1776093386674,-500.0,0.00041095,120]
[420421196,1776093386804,-500.0,0.00041095,120]
[420421197,1776093386888,-1528.0,0.00041096,120]
[420421198,1776093386955,-176.1091,0.00041096,120]
[420421199,1776093387022,-1000.0,0.00041096,60]
[420421200,1776093387082,-1000.0,0.00041096,60]
[420421201,1776093387144,-1000.0,0.00041096,60]
[420421202,1776093387204,-1000.0,0.00041096,60]
[420421203,1776093387263,-800.0,0.00041096,30]
[420421204,1776093387320,-1000.0,0.00041096,60]
[420421205,1776093387380,-800.0,0.00041096,30]
[420421206,1776093387438,-1000.0,0.00041096,60]
[420421207,1776093387495,-800.0,0.00041096,30]
[420421208,1776093387562,-1000.0,0.00041096,60]
[420421209,1776093387621,-800.0,0.00041096,30]
[420421210,1776093387679,-1000.0,0.00041096,60]
[420421211,1776093387738,-800.0,0.00041096,30]
[420421212,1776093387803,-1000.0,0.00041096,60]
[420421213,1776093387864,-800.0,0.00041096,30]
[420421214,1776093387933,-1000.0,0.00041096,60]
[420421215,1776093387998,-1000.0,0.00041096,60]
[420421216,1776093388059,-1000.0,0.00041096,60]
[420421217,1776093388121,-1000.0,0.00041096,60]
[420421218,1776093388180,-1000.0,0.00041096,60]
[420421219,1776093388232,-800.0,0.00041096,30]
[420421220,1776093388285,-1000.0,0.00041096,60]
[420421221,1776093388350,-800.0,0.00041096,30]
[420421222,1776093388404,-1000.0,0.00041096,60]
[420421223,1776093388458,-800.0,0.00041096,30]
[420421224,1776093388515,-1000.0,0.00041096,60]
[420421225,1776093388565,-800.0,0.00041096,30]
[420421226,1776093388619,-1000.0,0.00041096,60]
[420421227,1776093388671,-800.0,0.00041096,30]
[420421228,1776093388725,-1000.0,0.00041096,60]
[420421229,1776093388780,-800.0,0.00041096,30]
[420421230,1776093388835,-1000.0,0.00041096,60]
[420421231,1776093388887,-800.0,0.00041096,30]
[420421232,1776093388941,-1000.0,0.00041096,60]
[420421233,1776093389004,-800.0,0.00041096,30]
[420421234,1776093389057,-1000.0,0.00041096,60]
[420421235,1776093389114,-800.0,0.00041096,30]
[420421236,1776093389172,-1000.0,0.00041096,60]
[420421237,1776093389231,-800.0,0.00041096,30]
[420421238,1776093389289,-1000.0,0.00041096,60]
[420421239,1776093389345,-800.0,0.00041096,30]
[420421240,1776093389411,-201.0,0.00041096,60]
[420421241,1776093389470,-800.0,0.00041096,30]
[420421242,1776093389530,-800.0,0.00041096,30]
[420421243,1776093389585,-800.0,0.00041096,30]
[420421244,1776093389647,-800.0,0.00041096,30]
[420421245,1776093389709,-352.0,0.00041096,120]
[420421246,1776093389762,-800.0,0.00041096,30]
[420421247,1776093389826,-800.0,0.00041096,30]
[420421248,1776093389914,-800.0,0.00041096,30]
[420421249,1776093390144,-800.0,0.00041096,30]
[420421250,1776093390547,-800.0,0.00041096,30]
[420421251,1776093390706,-751.0,0.00041096,30]
[420421252,1776093390779,-151.0,0.00041096,120]
[420421253,1776093390845,-151.0,0.00041096,120]
[420421254,1776093390898,-151.0,0.00041096,120]
[420421255,1776093390952,-151.0,0.00041096,120]
[420421256,1776093391037,-151.0,0.00041096,120]
[420421257,1776093391102,-151.0,0.00041096,120]
[420421258,1776093391190,-151.0,0.00041096,120]
[420421259,1776093391279,-151.0,0.00041096,120]
[420421260,1776093391455,-255.890544,0.00041096,120]
[420421261,1776093391557,-151.0,0.00041096,120]
[420421262,1776093391630,-151.0,0.00041096,120]
[420421263,1776093391686,-151.0,0.00041096,120]
[420421264,1776093391744,-151.0,0.00041096,120]
[420421265,1776093391807,-151.0,0.00041096,120]
[420421266,1776093391859,-151.0,0.00041096,120]
[420421267,1776093391922,-151.0,0.00041096,120]
[420421268,1776093391976,-151.0,0.00041096,120]
[420421269,1776093392030,-151.0,0.00041096,120]
[420421270,1776093392081,-151.0,0.00041096,120]
[420421271,1776093392136,-159.441679,0.00041096,120]
[420421272,1776093392195,-151.0,0.00041096,120]
[420421273,1776093392246,-151.0,0.00041096,120]
[420421274,1776093392306,-151.0,0.00041096,120]
[420421275,1776093392366,-238.290851,0.00041096,120]
[420421276,1776093392421,-151.0,0.00041096,120]
[420421277,1776093392485,-151.0,0.00041096,120]
[420421278,1776093392538,-151.0,0.00041096,120]
[420421279,1776093392607,-151.0,0.00041096,120]
[420421280,1776093392682,-151.0,0.00041096,120]
[420421281,1776093392762,-151.0,0.00041096,120]
[420421282,1776093392824,-233.377792,0.00041096,120]
[420421283,1776093392914,-151.0,0.00041096,120]
[420421284,1776093392975,-151.0,0.00041096,120]
[420421285,1776093393054,-151.0,0.00041096,120]
[420421286,1776093393119,-151.0,0.00041096,120]
[420421287,1776093393193,-151.0,0.00041096,120]
[420421288,1776093393257,-151.0,0.00041096,120]
[420421289,1776093393322,-151.0,0.00041096,120]
[420421290,1776093393381,-151.0,0.00041096,120]
[420421291,1776093393444,-151.0,0.00041096,120]
[420421292,1776093393504,-197.734442,0.00041096,120]
[420421293,1776093393562,-151.0,0.00041096,120]
[420421294,1776093393636,-151.0,0.00041096,120]
[420421295,1776093393714,-151.0,0.00041096,120]
[420421296,1776093393774,-151.0,0.00041096,120]
[420421297,1776093393840,-151.0,0.00041096,120]
[420421298,1776093393902,-151.0,0.00041096,120]
[420421299,1776093393960,-151.0,0.00041096,120]
[420421300,1776093394015,-151.0,0.00041096,120]
[420421301,1776093394071,-151.0,0.00041096,120]
[420421302,1776093394127,-151.0,0.00041096,120]
[420421303,1776093394184,-151.0,0.00041096,120]
[420421304,1776093394238,-151.0,0.00041096,120]
[420421305,1776093394292,-151.0,0.00041096,120]
[420421306,1776093394346,-151.0,0.00041096,120]
[420421307,1776093394422,-151.0,0.00041096,120]
[420421308,1776093394976,-151.0,0.00041096,120]
[420421309,1776093395039,-151.0,0.00041096,120]
[420421310,1776093395096,-151.0,0.00041096,120]
[420421311,1776093395162,-159.343554,0.00041096,120]
[420421312,1776093395217,-217.900251,0.00041096,120]
[420421313,1776093395270,-1444.088351,0.00041096,120]
[420421314,1776093395324,-151.0,0.00041096,120]
[420421315,1776093395379,-151.0,0.00041096,120]
[420421316,1776093395437,-151.0,0.00041096,120]
[420421317,1776093395512,-151.0,0.00041096,120]
[420421318,1776093395608,-151.0,0.00041096,120]
[420421319,1776093395685,-151.0,0.00041096,120]
[420421320,1776093395737,-1444.088351,0.00041096,120]
[420421321,1776093395792,-151.0,0.00041096,120]
[420421322,1776093395858,-151.0,0.00041096,120]
[420421323,1776093395908,-1444.088351,0.00041096,120]
[420421324,1776093395960,-1444.088351,0.00041096,120]
[420421325,1776093396028,-151.0,0.00041096,120]
[420421326,1776093396083,-1444.088351,0.00041096,120]
[420421327,1776093396138,-151.0,0.00041096,120]
[420421328,1776093396217,-1444.088351,0.00041096,120]
[420421329,1776093396285,-151.0,0.00041096,120]
[420421330,1776093396354,-1444.088351,0.00041096,120]
[420421331,1776093396423,-1444.088351,0.00041096,120]
[420421332,1776093396489,-151.0,0.00041096,120]
[420421333,1776093396561,-1444.088351,0.00041096,120]
[420421334,1776093396621,-151.0,0.00041096,120]
[420421335,1776093396694,-151.0,0.00041096,120]
[420421336,1776093396748,-1444.088351,0.00041096,120]
[420421337,1776093396827,-151.0,0.00041096,120]
[420421338,1776093396878,-178.716312,0.00041096,120]
[420421339,1776093396941,-151.0,0.00041096,120]
[420421340,1776093397003,-1444.088351,0.00041096,120]
[420421341,1776093397060,-151.0,0.00041096,120]
[420421342,1776093397123,-178.716312,0.00041096,120]
[420421343,1776093397175,-151.0,0.00041096,120]
[420421344,1776093397224,-1444.088351,0.00041096,120]
[420421345,1776093397274,-178.716312,0.00041096,120]
[420421346,1776093397325,-151.0,0.00041096,120]
[420421347,1776093397375,-151.0,0.00041096,120]
[420421348,1776093397429,-1444.088351,0.00041096,120]
[420421349,1776093397479,-178.716312,0.00041096,120]
[420421350,1776093397527,-151.0,0.00041096,120]
[420421351,1776093397580,-151.0,0.00041096,120]
[420421352,1776093397638,-1444.088351,0.00041096,120]
[420421353,1776093397690,-178.716312,0.00041096,120]
[420421354,1776093397744,-173.073041,0.00041096,120]
[420421355,1776093397809,-151.0,0.00041096,120]
[420421356,1776093397862,-1444.088351,0.00041096,120]
[420421357,1776093397922,-178.716312,0.00041096,120]
[420421358,1776093397984,-151.0,0.00041096,120]
[420421359,1776093398039,-1444.088351,0.00041096,120]
[420421360,1776093398102,-178.716312,0.00041096,120]
[420421361,1776093398162,-151.0,0.00041096,120]
[420421362,1776093398228,-178.716312,0.00041096,120]
[420421363,1776093398301,-1444.088351,0.00041096,120]
[420421364,1776093398400,-151.0,0.00041096,120]
[420421365,1776093398625,-178.716312,0.00041096,120]
[420421366,1776093398722,-1444.088351,0.00041096,120]
[420421367,1776093398824,-151.0,0.00041096,120]
[420421368,1776093398900,-178.716312,0.00041096,120]
[420421369,1776093398958,-1444.088351,0.00041096,120]
[420421370,1776093399021,-151.0,0.00041096,120]
[420421371,1776093399082,-178.716312,0.00041096,120]
[420421372,1776093399132,-1444.088359,0.00041096,120]
[420421373,1776093399184,-151.0,0.00041096,120]
[420421374,1776093399233,-178.716312,0.00041096,120]
[420421375,1776093399285,-151.0,0.00041096,120]
[420421376,1776093399336,-178.716312,0.00041096,120]
[420421377,1776093399390,-151.0,0.00041096,120]
[420421378,1776093399450,-178.716312,0.00041096,120]
[420421379,1776093399501,-151.0,0.00041096,120]
[420421380,1776093399553,-178.716312,0.00041096,120]
[420421381,1776093399606,-151.0,0.00041096,120]
[420421382,1776093399666,-178.716312,0.00041096,120]
[420421383,1776093399735,-191.534419,0.00041096,120]
[420421384,1776093399795,-178.716312,0.00041096,120]
[420421385,1776093399851,-178.716312,0.00041096,120]
[420421386,1776093399914,-178.716312,0.00041096,120]
[420421387,1776093399979,-178.716306,0.00041096,120]
[420421388,1776093400065,-151.0,0.00041096,120]
[420421389,1776093400162,-151.0,0.00041096,120]
[420421390,1776093400244,-151.0,0.00041096,120]
[420421391,1776093400362,-151.0,0.00041096,120]
[420421392,1776093400442,-151.0,0.00041096,120]
[420421393,1776093400512,-151.0,0.00041096,120]
[420421394,1776093400570,-151.0,0.00041096,120]
[420421395,1776093400632,-151.0,0.00041096,120]
[420421396,1776093400691,-151.0,0.00041096,120]
[420421397,1776093400744,-151.0,0.00041096,120]
[420421398,1776093400799,-151.0,0.00041096,120]
[420421399,1776093400848,-151.0,0.00041096,120]
[420421400,1776093400898,-151.0,0.00041096,120]
[420421401,1776093400946,-151.0,0.00041096,120]
[420421402,1776093400994,-151.0,0.00041096,120]